bitfinex-derivatives/quotes_SOLF0:USTF0_20251201
["timestamp","ask_amount","ask_price","bid_price","bid_amount"]
[1764617338714,0.05872289,123.59,123.57,0.05324303]
[1764617340820,0.05872289,123.59,123.57,7.33664303]
[1764617341213,0.05872289,123.59,123.57,0.05324303]
[1764617341520,0.05872289,123.59,123.58,7.2832]
[1764617343118,0.05872289,123.59,123.57,0.05324303]
[1764617344411,0.05872289,123.59,123.57,7.33694303]
[1764617347926,0.05872289,123.59,123.58,7.2832]
[1764617348821,0.05872289,123.59,123.57,7.33694303]
[1764617351118,0.05872289,123.59,123.58,7.2832]
[1764617352324,0.05872289,123.59,123.57,7.33694303]
[1764617352529,0.05872289,123.59,123.57,0.05324303]
[1764617353427,2.95027915,123.59,123.57,0.05324303]
[1764617354430,0.05872289,123.59,123.57,0.05324303]
[1764617357030,7.34142289,123.59,123.57,0.05324303]
[1764617357223,10.23297915,123.59,123.57,0.05324303]
[1764617357422,2.95027915,123.59,123.57,0.05324303]
[1764617357738,7.2832,123.58,123.57,0.05324303]
[1764617360732,10.23297915,123.59,123.57,0.05324303]
[1764617365235,2.89155626,123.58,123.57,0.05324303]
[1764617365832,2.89155626,123.58,123.53,7.2856]
[1764617367035,0.05651822,123.57,123.54,0.053344]
[1764617367338,7.34041822,123.57,123.54,0.053344]
[1764617368234,10.23197448,123.57,123.54,0.053344]
[1764617368437,91.80350267,123.56,123.47,113.3915]
[1764617368641,2.89155626,123.55,123.47,113.3915]
[1764617369337,7.2856,123.54,123.5,7.2879]
[1764617369536,0.0583243,123.53,123.51,0.05756149]
[1764617371342,0.0583243,123.53,123.51,7.34476149]
[1764617373827,0.0583243,123.53,123.51,0.05756149]
[1764617377643,7.3445243,123.53,123.51,0.05756149]
[1764617377844,10.23608056,123.53,123.51,0.05756149]
[1764617378335,7.3445243,123.53,123.51,0.05756149]
[1764617379549,10.23608056,123.53,123.51,0.05756149]
[1764617379846,4.91194641,123.52,123.43,69.56]
[1764617380032,7.80350267,123.52,123.44,7.2909]
[1764617380743,0.0574848,123.49,123.45,7.2905]
[1764617382440,4.91194641,123.56,123.46,113.4048]
[1764617382651,13.55978118,123.56,123.46,113.4048]
[1764617383148,12.19784641,123.54,123.49,7.288]
[1764617383548,0.05924652,123.53,123.5,0.06067631]
[1764617387346,0.05924652,123.53,123.5,7.34827631]
[1764617387752,0.05924652,123.53,123.51,7.2873]
[1764617389142,0.05924652,123.53,123.52,7.2867]
[1764617390755,15.10248232,123.58,123.53,7.2858]
[1764617390962,69.56,123.59,123.53,7.2858]
[1764617391158,72.46733591,123.59,123.53,7.2858]
[1764617391366,2.90733591,123.58,123.53,7.2858]
[1764617391755,0.05737397,123.57,123.54,0.05692204]
[1764617393565,10.24870988,123.57,123.54,0.05692204]
[1764617393766,2.96470988,123.57,123.54,0.05692204]
[1764617394264,2.90733591,123.56,123.54,0.05692204]
[1764617394470,2.96470988,123.57,123.54,0.05692204]
[1764617395563,10.24860988,123.57,123.54,0.05692204]
[1764617395859,2.90733591,123.56,123.54,0.05692204]
[1764617396061,10.24860988,123.57,123.54,0.05692204]
[1764617396260,2.90733591,123.56,123.54,0.05692204]
[1764617399668,2.90733591,123.56,123.54,7.34242204]
[1764617400267,2.90733591,123.55,123.54,0.05692204]
[1764617400477,2.90733591,123.55,123.48,113.3828]
[1764617400659,2.90733591,123.54,123.48,113.3828]
[1764617400967,8.66560624,123.55,123.48,113.3828]
[1764617401168,2.90733591,123.54,123.48,113.3828]
[1764617401472,0.05720052,123.52,123.5,0.06121225]
[1764617401967,0.05720052,123.52,123.5,7.34901225]
[1764617402170,0.05720052,123.52,123.5,0.06121225]
[1764617403466,2.96453643,123.52,123.5,0.06121225]
[1764617403681,0.05720052,123.52,123.5,0.06121225]
[1764617403969,2.96453643,123.52,123.5,0.06121225]
[1764617404170,0.05720052,123.52,123.5,0.06121225]
[1764617404471,2.96453643,123.52,123.5,0.06121225]
[1764617404666,0.05720052,123.52,123.5,0.06121225]
[1764617406470,0.05720052,123.52,123.5,7.34881225]
[1764617407770,2.96453643,123.52,123.5,7.34881225]
[1764617408071,0.05720052,123.52,123.5,0.06121225]
[1764617408269,4.96914693,123.52,123.5,0.06121225]
[1764617408464,2.9149029,123.51,123.5,0.06121225]
[1764617411482,2.97493142,123.52,123.5,0.06121225]
[1764617411671,0.05720052,123.52,123.5,0.06121225]
[1764617412579,2.9760601,123.52,123.5,0.06121225]
[1764617412882,0.05720052,123.52,123.5,0.06121225]
[1764617413183,0.05720052,123.52,123.5,7.34891225]
[1764617414683,2.97744621,123.52,123.5,7.34891225]
[1764617415183,2.97744621,123.52,123.5,0.06121225]
[1764617415380,0.05720052,123.52,123.5,0.06121225]
[1764617415978,0.05720052,123.52,123.5,7.34911225]
[1764617416980,2.97794547,123.52,123.5,7.34911225]
[1764617417181,0.05720052,123.52,123.5,7.34911225]
[1764617417383,2.97801288,123.52,123.5,7.34911225]
[1764617418083,2.97801288,123.52,123.51,7.2873]
[1764617418389,3.14717317,123.57,123.5,182.98511225]
[1764617418588,3.14717317,123.57,123.53,7.2857]
[1764617418784,8.91169148,123.57,123.53,7.2857]
[1764617419186,3.14717317,123.55,123.54,0.05274243]
[1764617421584,8.91169148,123.55,123.54,0.05274243]
[1764617423189,87.14717317,123.55,123.54,0.05274243]
[1764617423388,92.91169148,123.55,123.54,0.05274243]
[1764617426977,100.19669148,123.55,123.54,0.05274243]
[1764617427696,100.19669148,123.55,123.45,14.97008881]
[1764617427697,7.2863,123.53,123.45,14.97008881]
[1764617427990,3.14717317,123.52,123.45,113.4135]
[1764617428687,0.0531109,123.5,123.47,0.05744159]
[1764617428997,3.14717317,123.48,123.47,0.05744159]
[1764617429290,3.14717317,123.48,123.41,113.4475]
[1764617429792,3.14717317,123.48,123.43,7.2919]
[1764617429994,3.14717317,123.49,123.42,113.4378]
[1764617430194,0.05243446,123.47,123.41,113.4475]
[1764617431793,0.05243446,123.47,123.45,7.2907]
[1764617432695,0.05243446,123.47,123.45,8.9107]
[1764617434901,2.89574698,123.52,123.49,7.2884]
[1764617435891,2.95138128,123.52,123.49,0.05865023]
[1764617436091,2.89574698,123.51,123.49,0.05865023]
[1764617436290,6.04292015,123.5,123.44,69.54]
[1764617436597,3.14717317,123.5,123.44,69.54]
[1764617436800,6.04292015,123.5,123.44,69.54]
[1764617436998,2.89574698,123.49,123.44,69.54]
[1764617437296,0.05094061,123.48,123.45,7.2903]
[1764617437498,0.05094061,123.48,123.44,69.54]
[1764617438300,0.05094061,123.48,123.46,7.2902]
[1764617440600,0.05094061,123.48,123.44,76.8309]
[1764617441096,0.05094061,123.48,123.44,69.54]
[1764617441301,0.05094061,123.48,123.45,7.2908]
[1764617446407,3.19811378,123.48,123.45,7.2908]
[1764617448999,7.34044061,123.48,123.43,7.2919]
[1764617449205,3.14717317,123.46,123.43,7.2919]
[1764617450516,3.14717317,123.46,123.4,183.0134]
[1764617450517,3.14717317,123.46,123.41,7.2926]
[1764617450718,0.0520156,123.45,123.41,7.2926]
[1764617451213,0.0520156,123.45,123.42,7.2925]
[1764617452420,0.0520156,123.45,123.4,69.56]
[1764617454513,0.0520156,123.45,123.41,113.4463]
[1764617454716,0.0520156,123.45,123.42,113.4399]
[1764617455025,0.0520156,123.45,123.44,7.2915]
[1764617457325,0.0520156,123.45,123.44,76.8715]
[1764617462128,86.9516342,123.51,123.45,113.4086]
[1764617463220,0.05795429,123.49,123.47,0.05663827]
[1764617463422,0.05795429,123.49,123.48,7.2891]
[1764617464923,2.9516342,123.55,123.51,113.3555]
[1764617465124,2.9516342,123.57,123.53,3.14717317]
[1764617465322,2.9516342,123.59,123.53,116.48437317]
[1764617465522,2.9516342,123.58,123.53,116.48437317]
[1764617465827,2.9516342,123.59,123.57,7.2838]
[1764617466028,2.9516342,123.58,123.57,7.34391867]
[1764617466228,0.05991045,123.59,123.57,7.34391867]
[1764617466429,3.01154465,123.59,123.57,7.34391867]
[1764617466622,0.05991045,123.59,123.57,7.34391867]
[1764617467031,3.01154465,123.59,123.57,7.34391867]
[1764617467327,0.05991045,123.59,123.57,7.34391867]
[1764617468328,0.05991045,123.59,123.57,0.06011867]
[1764617468527,3.14717317,123.58,123.51,113.3555]
[1764617468826,3.14717317,123.56,123.51,113.3555]
[1764617469028,3.14717317,123.54,123.5,69.56]
[1764617469424,11.84891436,123.56,123.5,69.56]
[1764617469624,0.05325007,123.54,123.52,0.05447389]
[1764617470636,0.05325007,123.54,123.53,69.54]
[1764617470931,2.95194894,123.59,123.53,182.877]
[1764617471128,11.85047156,123.6,123.53,69.54]
[1764617471335,8.70329839,123.62,123.56,226.6199]
[1764617471528,8.70329839,123.63,123.58,7.2829]
[1764617471730,2.95194894,123.62,123.56,69.54]
[1764617471928,6.09912211,123.62,123.56,76.8239]
[1764617472132,3.20371815,123.6,123.58,0.0528978]
[1764617472329,3.20371815,123.6,123.58,0.05831428]
[1764617472530,10.48591815,123.6,123.58,0.05831428]
[1764617472730,0.05654498,123.6,123.58,0.05831428]
[1764617475335,0.05654498,123.6,123.58,7.34131428]
[1764617476227,15.95995262,123.67,123.59,113.2839]
[1764617476434,75.87903603,123.68,123.57,113.2997]
[1764617476627,70.96790938,123.68,123.58,69.56]
[1764617476833,7.2779,123.67,123.6,7.2817]
[1764617477135,0.05602689,123.65,123.62,0.05360613]
[1764617477636,0.05602689,123.65,123.58,7.2829]
[1764617477836,2.94342234,123.65,123.58,7.2829]
[1764617478039,121.07884899,123.66,123.58,7.2829]
[1764617478342,7.2804,123.63,123.57,69.56]
[1764617478635,7.2804,123.63,123.59,0.05343082]
[1764617478831,0.05678443,123.61,123.59,0.05343082]
[1764617481340,0.05678443,123.61,123.59,7.33593082]
[1764617488044,0.05678443,123.61,123.6,7.282]
[1764617489643,1.67678443,123.61,123.51,14.574]
[1764617489845,116.15447906,123.63,123.53,69.5]
[1764617490146,7.2821,123.6,123.53,69.5]
[1764617490738,0.05601835,123.58,123.55,0.05301167]
[1764617492349,0.05601835,123.58,123.56,7.2843]
[1764617498341,0.05601835,123.58,123.57,7.2838]
[1764617498744,0.05601835,123.58,123.57,76.7838]
[1764617499148,7.2803,123.63,123.59,7.2826]
[1764617499747,84.0,123.64,123.54,113.3276]
[1764617499959,113.2766,123.6,123.5,113.3679]
[1764617500141,0.05474628,123.56,123.54,0.06155125]
[1764617500850,7.33934628,123.56,123.54,0.06155125]
[1764617504555,0.05474628,123.56,123.54,0.06155125]
[1764617506159,2.91610937,123.55,123.54,0.06155125]
[1764617506456,10.20110937,123.55,123.54,0.06155125]
[1764617509258,11.82110937,123.55,123.54,0.06155125]
[1764617509466,7.2864,123.53,123.48,7.289]
[1764617509666,2.91610937,123.52,123.48,7.289]
[1764617509958,2.91610937,123.51,123.48,7.289]
[1764617510163,2.91610937,123.52,123.44,182.9978]
[1764617510361,0.06030015,123.49,123.47,0.05169909]
[1764617510760,2.91610937,123.55,123.47,115.06029909]
[1764617511062,2.91610937,123.57,123.5,113.3666]
[1764617511259,8.65885603,123.58,123.5,113.3666]
[1764617511564,2.91610937,123.57,123.5,113.3666]
[1764617511764,0.06037081,123.55,123.52,0.05230134]
[1764617512062,0.06037081,123.55,123.52,7.33890134]
[1764617519571,0.06037081,123.55,123.53,7.286]
[1764617520970,69.6,123.54,123.44,183.0207]
[1764617521176,116.22703796,123.55,123.45,113.4096]
[1764617521363,2.89973796,123.55,123.47,113.3919]
[1764617521566,13.02296407,123.56,123.5,7.2878]
[1764617521873,0.05725362,123.54,123.52,0.0596979]
[1764617522373,0.05725362,123.54,123.47,113.3919]
[1764617522867,7.34285362,123.54,123.48,7.2888]
[1764617523574,7.34285362,123.54,123.49,7.2881]
[1764617523769,0.05725362,123.54,123.47,113.3919]
[1764617524476,0.05725362,123.54,123.5,7.2875]
[1764617525270,7.34295362,123.54,123.5,7.2875]
[1764617525472,7.34295362,123.54,123.48,7.2888]
[1764617525768,0.05224762,123.52,123.47,113.3884]
[1764617526272,0.05224762,123.52,123.5,7.2875]
[1764617526462,0.05224762,123.52,123.46,113.4032]
[1764617526667,7.33894762,123.52,123.46,7.2898]
[1764617527063,7.2874,123.51,123.46,7.2898]
[1764617529878,7.2881,123.5,123.46,7.2898]
[1764617530180,0.05982836,123.49,123.46,7.2898]
[1764617530573,0.05982836,123.49,123.47,7.2894]
[1764617532770,0.05982836,123.49,123.47,76.9894]
[1764617533779,0.05982836,123.49,123.47,78.6094]
[1764617535982,0.05982836,123.49,123.48,7.2891]
[1764617536882,94.18137117,123.56,123.51,7.2868]
[1764617537080,94.18137117,123.56,123.51,76.9668]
[1764617537881,0.05261861,123.55,123.52,0.0522575]
[1764617540182,10.23458978,123.55,123.52,0.0522575]
[1764617541385,16.01425226,123.55,123.52,0.0522575]
[1764617542095,2.89647117,123.54,123.52,0.0522575]
[1764617543189,13.11778109,123.55,123.52,0.0522575]
[1764617543190,2.89647117,123.53,123.52,0.0522575]
[1764617543390,2.89647117,123.54,123.52,0.0522575]
[1764617543592,10.54368434,123.53,123.44,113.4143]
[1764617543796,8.67613365,123.52,123.44,113.4143]
[1764617543979,8.67613365,123.52,123.47,7.2892]
[1764617543980,10.18407117,123.51,123.47,7.2892]
[1764617544182,7.64721317,123.53,123.45,113.4078]
[1764617544183,2.89647117,123.5,123.45,113.4078]
[1764617544383,2.89647117,123.52,123.45,113.4078]
[1764617544587,0.0575873,123.5,123.45,113.4078]
[1764617544782,2.95405847,123.5,123.47,7.2892]
[1764617544984,0.0575873,123.5,123.47,7.2892]
[1764617545178,2.95405847,123.5,123.48,7.2886]
[1764617545385,0.0575873,123.5,123.46,113.4042]
[1764617545583,0.0575873,123.5,123.46,183.0842]
[1764617545783,0.0575873,123.5,123.49,7.2885]
[1764617554107,0.0575873,123.5,123.49,76.9285]
[1764617558195,3.20465791,123.5,123.43,113.432]
[1764617558412,0.05712175,123.48,123.44,183.0433]
[1764617559106,0.05712175,123.48,123.47,7.2897]
[1764617559495,0.05712175,123.48,123.47,76.9097]
[1764617561500,0.05712175,123.48,123.47,7.2897]
[1764617565595,0.05712175,123.48,123.47,76.8897]
[1764617568001,2.92365901,123.51,123.5,7.2879]
[1764617568308,2.92365901,123.52,123.47,182.9868]
[1764617568511,8.92673309,123.54,123.47,182.9868]
[1764617568716,2.92499301,123.53,123.47,182.9868]
[1764617568910,2.92499301,123.52,123.48,113.3834]
[1764617569103,0.05268907,123.51,123.49,0.05694024]
[1764617569309,0.05268907,123.51,123.5,69.6]
[1764617570204,0.05268907,123.51,123.5,76.8879]
[1764617579816,0.05268907,123.51,123.5,7.2879]
[1764617580017,2.97242039,123.51,123.5,7.2879]
[1764617581115,2.97242039,123.51,123.49,0.05694024]
[1764617581116,2.97242039,123.51,123.48,7.2889]
[1764617581309,2.91973132,123.5,123.48,7.2889]
[1764617581514,2.91625495,123.49,123.48,7.2889]
[1764617582020,2.91625495,123.49,123.46,76.8502]
[1764617582313,2.91625495,123.48,123.46,7.2902]
[1764617582516,8.71005438,123.47,123.41,113.4461]
[1764617582711,8.71005438,123.47,123.39,113.4644]
[1764617582712,3.14707061,123.43,123.39,113.4644]
[1764617582917,0.05175956,123.42,123.39,113.4644]
[1764617584318,0.05175956,123.42,123.41,7.2929]
[1764617586026,6.05779537,123.47,123.43,7.2916]
[1764617586319,19.1404948,123.49,123.42,113.438]
[1764617586511,15.99232419,123.51,123.43,113.4292]
[1764617586717,6.05779537,123.5,123.44,182.9995]
[1764617586917,3.14707061,123.5,123.44,182.9995]
[1764617587214,0.05819856,123.48,123.46,0.05926541]
[1764617587723,3.20526917,123.48,123.46,0.05926541]
[1764617588618,0.05819856,123.48,123.46,7.34936541]
[1764617589416,0.05819856,123.48,123.47,69.6]
[1764617590315,0.05819856,123.48,123.46,7.34936541]
[1764617591131,0.05819856,123.48,123.46,0.05926541]
[1764617593821,0.05819856,123.48,123.46,7.34946541]
[1764617598326,0.05819856,123.48,123.46,0.05926541]
[1764617599430,2.91072476,123.47,123.39,69.62]
[1764617599619,8.70452419,123.47,123.4,7.2934]
[1764617600318,127.18544395,123.45,123.35,113.4993]
[1764617600517,113.4784,123.39,123.29,227.1152]
[1764617600722,0.0578465,123.35,123.29,227.1152]
[1764617600918,0.0578465,123.35,123.31,113.5409]
[1764617601336,0.0578465,123.35,123.32,183.2322]
[1764617601520,0.0578465,123.35,123.33,7.2978]
[1764617602328,0.0578465,123.35,123.3,183.291]
[1764617602734,0.0578465,123.35,123.3,7.2996]
[1764617603828,0.0578465,123.35,123.31,7.299]
[1764617607136,7.2979,123.34,123.26,113.5816]
[1764617607330,0.05767365,123.31,123.23,188.62044708]
[1764617607733,0.05767365,123.31,123.27,7.3012]
[1764617608729,0.05767365,123.31,123.28,7.3006]
[1764617609736,0.05767365,123.31,123.29,7.3001]
[1764617611436,0.05767365,123.31,123.3,69.88]
[1764617611632,72.59227894,123.39,123.3,185.0437]
[1764617611838,69.68,123.39,123.32,113.5307]
[1764617612634,69.68,123.39,123.34,0.05617855]
[1764617612848,0.06162606,123.37,123.34,7.35337855]
[1764617613837,0.06162606,123.37,123.35,7.2966]
[1764617614938,0.06162606,123.37,123.34,0.05617855]
[1764617615733,0.06162606,123.37,123.34,7.35337855]
[1764617615928,0.06162606,123.37,123.34,0.05617855]
[1764617617430,0.06162606,123.37,123.34,7.35337855]
[1764617618742,0.06162606,123.37,123.35,7.2967]
[1764617619543,0.06162606,123.37,123.34,0.05617855]
[1764617620837,0.06162606,123.37,123.35,7.2963]
[1764617626351,0.06162606,123.37,123.36,7.2962]
[1764617628348,10.20558338,123.44,123.39,7.2939]
[1764617628548,7.292,123.44,123.39,7.2939]
[1764617628943,7.2924,123.43,123.37,7.2951]
[1764617629242,0.05248676,123.41,123.39,0.05765382]
[1764617630753,0.05248676,123.41,123.39,7.35205382]
[1764617631953,0.05248676,123.41,123.4,7.2938]
[1764617632553,2.91358338,123.46,123.43,7.292]
[1764617632753,7.2896,123.48,123.43,7.292]
[1764617632954,10.20318338,123.48,123.43,7.292]
[1764617633155,7.2897,123.47,123.43,7.292]
[1764617633356,91.2897,123.47,123.43,7.292]
[1764617633662,0.06087836,123.46,123.44,0.05215455]
[1764617641163,0.06087836,123.46,123.45,7.2909]
[1764617642367,6.60419731,123.46,123.41,7.2931]
[1764617642574,4.92331895,123.44,123.38,113.4741]
[1764617642869,7.2909,123.45,123.38,113.4741]
[1764617643173,2.92723608,123.47,123.39,183.2457]
[1764617643372,2.92723608,123.48,123.41,113.4478]
[1764617643564,0.05246701,123.46,123.43,0.05169852]
[1764617643760,0.05246701,123.46,123.44,7.2913]
[1764617643965,0.05246701,123.46,123.43,0.05169852]
[1764617644971,0.05246701,123.46,123.43,7.34359852]
[1764617647263,0.05246701,123.46,123.44,7.2913]
[1764617648073,0.05246701,123.46,123.43,0.05169852]
[1764617649764,7.34286701,123.46,123.43,0.05169852]
[1764617650166,0.05246701,123.46,123.43,7.34369852]
[1764617652569,0.05246701,123.46,123.44,7.2914]
[1764617654273,0.05246701,123.46,123.43,113.48189852]
[1764617654682,0.05246701,123.46,123.44,69.74]
[1764617654879,0.05246701,123.46,123.45,7.2909]
[1764617655082,2.93223727,123.5,123.44,183.1592]
[1764617655377,2.93223727,123.54,123.44,183.1592]
[1764617655578,2.93223727,123.53,123.44,69.74]
[1764617655772,2.93223727,123.52,123.44,69.74]
[1764617656173,0.05693961,123.49,123.47,0.05783805]
[1764617658365,0.05693961,123.49,123.47,7.34753805]
[1764617659281,0.05693961,123.49,123.47,0.05783805]
[1764617659865,7.34543961,123.49,123.47,0.05783805]
[1764617663083,91.2891,123.48,123.47,0.05783805]
[1764617664284,94.22133727,123.48,123.47,0.05783805]
[1764617665483,100.00108086,123.48,123.47,0.05783805]
[1764617666383,103.1513393,123.48,123.47,0.05783805]
[1764617666780,19.1513393,123.48,123.47,0.05783805]
[1764617666981,13.37159571,123.48,123.47,0.05783805]
[1764617669682,10.22133727,123.48,123.47,0.05783805]
[1764617671181,3.15025844,123.47,123.43,7.292]
[1764617671388,2.93223727,123.46,123.43,7.292]
[1764617671578,87.15025844,123.47,123.43,7.292]
[1764617671775,84.0,123.46,123.42,3.24548]
[1764617671980,3.15025844,123.45,123.42,3.24548]
[1764617672182,10.49695111,123.45,123.42,3.30632306]
[1764617673187,13.42918838,123.45,123.42,3.30632306]
[1764617673387,13.42918838,123.45,123.42,10.59892306]
[1764617674188,10.27892994,123.45,123.42,10.59892306]
[1764617674387,2.98802994,123.45,123.42,10.59892306]
[1764617674787,2.98802994,123.45,123.43,7.2919]
[1764617674990,0.05579267,123.45,123.43,7.2919]
[1764617675188,2.98802994,123.45,123.43,7.2919]
[1764617675994,0.05579267,123.45,123.43,7.2919]
[1764617676896,3.0035973,123.45,123.43,7.2919]
[1764617677293,0.05579267,123.45,123.43,7.2919]
[1764617677795,3.00440728,123.45,123.43,7.2919]
[1764617677987,0.05579267,123.45,123.43,7.2919]
[1764617678186,0.05579267,123.45,123.44,7.2915]
[1764617678589,2.94892766,123.47,123.46,7.2903]
[1764617678896,2.94892766,123.48,123.44,113.4198]
[1764617679082,2.94892766,123.5,123.44,113.4198]
[1764617679287,2.94892766,123.49,123.46,113.4044]
[1764617679498,2.94892766,123.5,123.46,113.4044]
[1764617679697,0.05864322,123.49,123.47,0.05722765]
[1764617679886,0.05864322,123.49,123.47,69.73722765]
[1764617680087,0.05864322,123.49,123.48,7.2891]
[1764617685001,2.94579439,123.52,123.5,7.2878]
[1764617685190,2.94579439,123.53,123.5,7.2878]
[1764617685792,2.99821266,123.53,123.5,7.34239674]
[1764617686493,3.15025844,123.52,123.5,7.34239674]
[1764617687002,3.15025844,123.52,123.5,0.05459674]
[1764617688002,6.09605283,123.52,123.5,0.05459674]
[1764617688895,13.38285283,123.52,123.5,0.05459674]
[1764617690302,13.37973817,123.52,123.5,0.05459674]
[1764617690902,7.2868,123.52,123.5,0.05459674]
[1764617693211,8.78853601,123.53,123.5,0.05459674]
[1764617693509,0.05241827,123.53,123.5,0.05459674]
[1764617693699,2.995098,123.53,123.5,0.05459674]
[1764617693994,0.05241827,123.53,123.5,0.05459674]
[1764617694399,7.33851827,123.53,123.5,0.05459674]
[1764617695221,10.281198,123.53,123.5,0.05459674]
[1764617698119,0.05241827,123.53,123.51,7.2873]
[1764617698314,0.05241827,123.53,123.5,0.05459674]
[1764617700422,0.05241827,123.53,123.5,7.34229674]
[1764617701025,6.09293817,123.52,123.42,119.83203844]
[1764617701223,3.15025844,123.5,123.42,119.83203844]
[1764617701526,10.44085844,123.46,123.42,10.53758]
[1764617702124,0.05295766,123.45,123.43,0.0539855]
[1764617703022,0.05295766,123.45,123.43,7.3454855]
[1764617703328,0.05295766,123.45,123.43,0.0539855]
[1764617704022,16.01442332,123.5,123.43,69.6739855]
[1764617704225,16.01442332,123.5,123.43,0.0539855]
[1764617704418,10.23107973,123.5,123.44,69.62]
[1764617704725,3.15025844,123.47,123.42,116.68488]
[1764617704922,3.15025844,123.47,123.42,3.24548]
[1764617705118,10.44115844,123.45,123.43,0.06212435]
[1764617705322,3.15025844,123.44,123.43,0.06212435]
[1764617708116,0.06170259,123.46,123.43,0.06212435]
[1764617709422,0.06170259,123.46,123.44,7.291]
[1764617710023,11.86962453,123.51,123.46,7.2899]
[1764617710219,8.9269448,123.51,123.44,113.4222]
[1764617710422,8.9269448,123.51,123.43,116.57925844]
[1764617710423,3.15025844,123.51,123.43,116.57925844]
[1764617711131,0.05259698,123.48,123.46,7.34809892]
[1764617712533,2.94267973,123.54,123.48,113.3861]
[1764617712831,3.15025844,123.55,123.48,113.3861]
[1764617713027,3.15025844,123.55,123.51,7.2872]
[1764617713227,3.15025844,123.55,123.5,113.3657]
[1764617713429,6.09293817,123.57,123.51,113.3581]
[1764617713630,0.0593474,123.54,123.51,113.41089491]
[1764617714029,0.0593474,123.54,123.53,7.286]
[1764617714928,2.94267973,123.57,123.51,113.41089491]
[1764617715132,13.21293068,123.59,123.5,113.3657]
[1764617715133,5.77991364,123.59,123.54,7.285]
[1764617715822,5.77991364,123.59,123.55,7.2848]
[1764617716025,0.05262215,123.58,123.56,0.05537853]
[1764617716235,0.05262215,123.58,123.57,69.66]
[1764617716528,0.05262215,123.58,123.56,69.71537853]
[1764617716726,8.83745122,123.64,123.57,113.303]
[1764617716929,2.94267973,123.65,123.57,113.303]
[1764617717127,2.94267973,123.64,123.56,182.9704]
[1764617717331,2.94267973,123.65,123.56,182.9704]
[1764617717734,0.05671505,123.62,123.59,0.05183304]
[1764617719236,0.05671505,123.62,123.59,7.33423304]
[1764617719437,0.05671505,123.62,123.6,69.66]
[1764617719733,8.83745122,123.68,123.6,182.936]
[1764617719940,8.83745122,123.69,123.6,182.936]
[1764617720528,8.83745122,123.69,123.61,7.2811]
[1764617720529,16.11425122,123.69,123.61,7.2811]
[1764617720736,16.11425122,123.69,123.6,182.936]
[1764617720737,0.05381796,123.66,123.64,0.05161565]
[1764617724042,0.05381796,123.66,123.58,76.903]
[1764617724043,8.95261796,123.66,123.58,76.903]
[1764617724344,122.02614225,123.66,123.58,76.903]
[1764617724537,116.16697973,123.66,123.58,76.903]
[1764617725148,0.05857502,123.63,123.61,0.0596126]
[1764617725341,90.78978827,123.71,123.61,0.0596126]
[1764617725647,4.30261977,123.7,123.62,69.64]
[1764617725843,7.26291025,123.7,123.62,69.64]
[1764617726152,113.2013,123.69,123.59,113.282]
[1764617726446,0.05992708,123.65,123.63,0.05194871]
[1764617734357,0.05992708,123.65,123.63,7.33214871]
[1764617736252,84.0,123.7,123.63,182.89834871]
[1764617736561,69.68,123.71,123.64,113.2372]
[1764617737258,0.05597279,123.69,123.66,0.05120905]
[1764617739151,7.2773,123.68,123.66,0.05120905]
[1764617739960,7.2791,123.65,123.55,14.5699]
[1764617740151,113.2141,123.67,123.6,7.2816]
[1764617740657,113.1974,123.69,123.62,7.2806]
[1764617740658,7.2789,123.66,123.62,7.2806]
[1764617741059,0.05419471,123.65,123.63,0.05558778]
[1764617742651,7.33339471,123.65,123.63,0.05558778]
[1764617745261,0.05419471,123.65,123.63,0.05558778]
[1764617746459,0.05419471,123.65,123.63,7.33558778]
[1764617747357,0.05419471,123.65,123.64,7.2797]
[1764617756361,0.05419471,123.65,123.64,76.8397]
[1764617756562,3.03073186,123.65,123.64,76.8397]
[1764617757869,3.03073186,123.65,123.64,7.2797]
[1764617758461,8.93809162,123.65,123.64,7.2797]
[1764617758967,8.93809162,123.65,123.63,0.05558778]
[1764617759165,2.97653715,123.64,123.63,0.05558778]
[1764617759367,8.8910509,123.64,123.63,0.05558778]
[1764617759668,8.8910509,123.64,123.63,7.33578778]
[1764617761071,5.91451375,123.64,123.63,7.33578778]
[1764617763468,6.913e-05,123.64,123.63,7.33578778]
[1764617763666,0.05419471,123.65,123.64,7.2797]
[1764617763884,10.37634963,123.68,123.64,182.7968]
[1764617764168,10.22879574,123.71,123.68,113.2014]
[1764617764471,7.39981248,123.74,123.69,182.7512]
[1764617764772,0.0519549,123.73,123.7,0.06026133]
[1764617765267,0.0519549,123.73,123.71,7.2755]